fUST/lending_fUST_20251019
["ID","MTS","AMOUNT","RATE_DAILY","PERIOD"]
[391792858,1760827499637,176.82,0.00022802,2]
[391792859,1760827500057,221.02,0.00023752,2]
[391792862,1760827533362,1500.0,0.00015,2]
[391792863,1760827652832,666.0,0.00023641,2]
[391792865,1760827765366,412.69166998,0.00023825,2]
[391792866,1760827767396,471.17597521,0.00023968,2]
[391792867,1760827817559,417.15472785,0.00024142,2]
[391792894,1760827832403,-255.49749186,0.00024342,30]
[391792896,1760827832415,-744.50250814,0.00024342,30]
[391792898,1760827832424,-164.13438117,0.00024541,2]
[391792900,1760827832434,-141.45784894,0.00024547,2]
[391792904,1760827832461,-55.19172341,0.00024547,2]
[391792906,1760827832470,-500.0,0.00024639,2]
[391792908,1760827832480,-141.74247472,0.00024639,2]
[391792913,1760827832521,-358.25752528,0.00024639,2]
[391792915,1760827832530,-500.0,0.00024639,2]
[391792917,1760827832540,-500.0,0.00024639,2]
[391792919,1760827832549,-373.65986064,0.00024639,2]
[391792921,1760827832559,-500.0,0.00024639,2]
[391792923,1760827832568,-500.0,0.00024639,2]
[391792925,1760827832578,-500.0,0.00024639,2]
[391792927,1760827832587,-500.0,0.00024639,2]
[391792929,1760827832599,-600.0,0.00024639,2]
[391792931,1760827832609,-500.0,0.00024639,2]
[391792933,1760827832618,-500.0,0.00024639,2]
[391792935,1760827832627,-500.0,0.00024639,2]
[391792937,1760827832636,-500.0,0.00024639,2]
[391792939,1760827832646,-500.0,0.00024639,2]
[391792941,1760827832656,-500.0,0.00024639,2]
[391792943,1760827832665,-500.0,0.00024639,2]
[391792947,1760827832675,-500.0,0.00024639,2]
[391792950,1760827832684,-500.0,0.00024639,2]
[391792952,1760827832694,-500.0,0.00024639,2]
[391792954,1760827832705,-500.0,0.00024639,2]
[391792956,1760827832715,-500.0,0.00024639,2]
[391792958,1760827832725,-500.0,0.00024639,2]
[391792960,1760827832734,-500.0,0.00024639,2]
[391792962,1760827832743,-641.8281124,0.00024639,2]
[391792964,1760827832753,-500.0,0.00024639,2]
[391792966,1760827832762,-300.0,0.00024639,2]
[391792968,1760827832772,-300.0,0.00024639,2]
[391792970,1760827832781,-300.0,0.00024639,2]
[391792972,1760827832790,-1200.0,0.00024639,2]
[391792974,1760827832799,-151.0,0.0002464,7]
[391792976,1760827832808,-151.0,0.0002464,7]
[391792978,1760827832818,-151.0,0.0002464,7]
[391792980,1760827832827,-151.0,0.0002464,7]
[391792982,1760827832837,-659.53042604,0.00024641,2]
[391792985,1760827832847,-36678.6,0.00024641,2]
[391792987,1760827832857,-151.0,0.00024641,7]
[391792988,1760827832866,-200.0,0.00024641,3]
[391792991,1760827832875,-200.0,0.00024641,3]
[391792993,1760827832885,-200.0,0.00024641,3]
[391792995,1760827832894,-200.0,0.00024641,3]
[391792997,1760827832903,-200.0,0.00024641,3]
[391792999,1760827832912,-151.0,0.00024641,7]
[391793001,1760827832921,-151.0,0.00024642,7]
[391793003,1760827832931,-151.0,0.00024642,2]
[391793006,1760827832950,-151.0,0.00024643,7]
[391793008,1760827832961,-151.0,0.00024643,7]
[391793010,1760827832971,-151.0,0.00024644,7]
[391793012,1760827832980,-151.0,0.00024644,2]
[391793014,1760827832990,-151.0,0.00024644,2]
[391793016,1760827833000,-151.0,0.00024644,2]
[391793018,1760827833010,-500.0,0.00024648,7]
[391793020,1760827833020,-151.0,0.00024648,7]
[391793022,1760827833030,-151.0,0.00024648,7]
[391793024,1760827833039,-151.0,0.00024648,7]
[391793026,1760827833049,-151.0,0.00024648,7]
[391793028,1760827833058,-151.66255476,0.00024648,7]
[391793030,1760827833067,-151.0,0.00024648,7]
[391793032,1760827833077,-151.0,0.00024649,7]
[391793034,1760827833087,-1043.50074777,0.0002465,2]
[391793036,1760827833097,-508.86170983,0.0002465,2]
[391793038,1760827833106,-165.38216494,0.0002465,7]
[391793040,1760827833115,-500.0,0.00024657,2]
[391793042,1760827833125,-500.0,0.00024657,2]
[391793044,1760827833135,-500.0,0.00024657,2]
[391793047,1760827833145,-500.0,0.00024657,2]
[391793049,1760827833154,-500.0,0.00024657,2]
[391793051,1760827833163,-500.0,0.00024657,2]
[391793052,1760827833173,-500.0,0.00024657,2]
[391793054,1760827833182,-500.0,0.00024657,2]
[391793056,1760827833192,-500.0,0.00024657,2]
[391793058,1760827833201,-500.0,0.00024657,2]
[391793060,1760827833210,-500.0,0.00024657,2]
[391793062,1760827833220,-500.0,0.00024657,2]
[391793064,1760827833230,-152.434229,0.00024658,7]
[391793066,1760827833239,-500.0,0.00024658,2]
[391793068,1760827833249,-500.0,0.00024658,2]
[391793070,1760827833259,-500.0,0.00024658,2]
[391793072,1760827833268,-500.0,0.00024658,2]
[391793074,1760827833277,-500.0,0.00024658,2]
[391793076,1760827833287,-500.0,0.00024658,2]
[391793078,1760827833296,-217.85987498,0.00024658,2]
[391793080,1760827833305,-500.0,0.00024658,2]
[391793082,1760827833314,-500.0,0.00024658,2]
[391793085,1760827833324,-500.0,0.00024658,2]
[391793087,1760827833334,-500.0,0.00024658,2]
[391793088,1760827833346,-500.0,0.00024658,2]
[391793090,1760827833356,-501.24951021,0.00024703,7]
[391793093,1760827833366,-151.53440013,0.00024703,7]
[391793095,1760827833375,-242.86505871,0.00024703,7]
[391793096,1760827833385,-151.0,0.00024703,7]
[391793099,1760827833395,-151.0,0.00024703,7]
[391793100,1760827833404,-151.0,0.00024704,7]
[391793103,1760827833415,-151.0,0.00024758,7]
[391793104,1760827833424,-151.0,0.00024758,7]
[391793106,1760827833434,-198.0,0.00024759,7]
[391793108,1760827833443,-151.0,0.00024812,7]
[391793110,1760827833453,-289.3545318,0.00024812,7]
[391793112,1760827833462,-151.0,0.00024867,7]
[391793114,1760827833472,-245.0,0.00024922,7]
[391793116,1760827833481,-500.0,0.00024932,2]
[391793118,1760827833491,-214.04597539,0.00025026,5]
[391793120,1760827833500,-226.1470082,0.00025147,2]
[391793122,1760827833510,-500.0,0.00025206,2]
[391793124,1760827833519,-359.0,0.00025523,2]
[391793125,1760827833528,-250.0,0.00025739,2]
[391793128,1760827833539,-255.64444406,0.00025747,2]
[391793130,1760827833550,-491.93367639,0.00025753,15]
[391793131,1760827833559,-2398.58712556,0.00025787,2]
[391793134,1760827833569,-500.0,0.00026007,5]
[391793136,1760827833579,-255.22861156,0.00026125,2]
[391793138,1760827833589,-459.41150082,0.00026125,2]
[391793140,1760827833601,-816.73155701,0.00026125,2]
[391793142,1760827833611,-500.0,0.00026281,5]
[391793144,1760827833621,-285.14187991,0.00026347,2]
[391793146,1760827833630,-500.0,0.00026554,5]
[391793148,1760827833640,-420.0,0.00026702,2]
[391793150,1760827833649,-500.0,0.00026828,5]
[391793152,1760827833658,-314.63931576,0.00026947,2]
[391793154,1760827833668,-369.82848418,0.00027073,2]
[391793156,1760827833678,-500.0,0.00027102,5]
[391793158,1760827833687,-437.90058634,0.00027146,2]
[391793160,1760827833697,-788.22105541,0.00027146,2]
[391793162,1760827833706,-1401.28187628,0.00027146,2]
[391793164,1760827833716,-181.78536,0.00027397,30]
[391793166,1760827833726,-886.87,0.000274,2]
[391793168,1760827833736,-4518.46159236,0.00027447,2]
[391793170,1760827833745,-160.0,0.00027498,2]
[391793172,1760827833756,-333.40114535,0.000275,2]
[391793174,1760827833766,-162.92617451,0.000275,2]
[391793176,1760827833775,-169.68523388,0.000275,2]
[391793178,1760827833785,-172.95260704,0.000275,2]
[391793180,1760827833794,-191.17515885,0.000275,2]
[391793182,1760827833803,-185.52756136,0.000275,2]
[391793184,1760827833813,-163.2215299,0.000275,2]
[391793186,1760827833822,-160.0,0.000275,2]
[391793188,1760827833831,-175.97057363,0.000275,2]
[391793190,1760827833840,-183.12601999,0.000275,2]
[391793192,1760827833850,-1827.70909118,0.000275,2]
[391793194,1760827833859,-2247.8751392,0.00027517,2]
[391793196,1760827833868,-17363.3372701,0.00027517,2]
[391793198,1760827833877,-344.13675161,0.00027547,2]
[391793200,1760827833887,-160.0,0.00027561,2]
[391793202,1760827833896,-218.00014911,0.00027641,2]
[391793204,1760827833905,-333.40114535,0.000277,2]
[391793206,1760827833914,-172.95260704,0.000277,2]
[391793208,1760827833924,-191.17515885,0.000277,2]
[391793210,1760827833933,-185.52756136,0.000277,2]
[391793212,1760827833942,-163.2215299,0.000277,2]
[391793214,1760827833951,-1827.70909118,0.000277,2]
[391793215,1760827833961,-2189.50293169,0.00027793,2]
[391793218,1760827833971,-333.40114535,0.00028,2]
[391793219,1760827833980,-172.95260704,0.00028,2]
[391793221,1760827833990,-185.52756136,0.00028,2]
[391793222,1760827834004,-163.2215299,0.00028,2]
[391793223,1760827834014,-1827.70909118,0.00028,2]
[391793224,1760827834024,-422.66112478,0.00028022,2]
[391793225,1760827834034,-260.0,0.00028109,2]
[391793226,1760827834044,-373.63418747,0.00028147,2]
[391793227,1760827834054,-333.40114535,0.000283,2]
[391793228,1760827834063,-172.95260704,0.000283,2]
[391793229,1760827834074,-185.52756136,0.000283,2]
[391793230,1760827834086,-163.2215299,0.000283,2]
[391793231,1760827834098,-1827.70909118,0.000283,2]
[391793232,1760827834109,-280.04990997,0.00028517,5]
[391793233,1760827834119,-503.25734089,0.00028517,5]
[391793234,1760827834130,-333.40114535,0.000286,2]
[391793235,1760827834142,-172.95260704,0.000286,2]
[391793236,1760827834152,-1827.70909118,0.000286,2]
[391793237,1760827834162,-360.0,0.00028657,2]
[391793238,1760827834171,-403.13162332,0.00028747,2]
[391793239,1760827834182,-3147.91,0.00028767,2]
[391793240,1760827834192,-587.0,0.00028938,2]
[391793241,1760827834203,-1000.01,0.00029,2]
[391793242,1760827834214,-378.41768451,0.00029096,2]
[391793243,1760827834226,-1000.01,0.00029174,2]
[391793244,1760827834236,-296.49,0.00029199,4]
[391793245,1760827834247,-460.0,0.00029205,2]
[391793246,1760827834258,-432.62905917,0.00029347,2]
[391793247,1760827834270,-2398.58712556,0.0002949,2]
[391793248,1760827834280,-3606.37120921,0.000295,2]
[391793249,1760827834290,-3147.91,0.00029726,4]
[391793250,1760827834299,-151.0,0.00029749,7]
[391793251,1760827834309,-560.0,0.00029752,2]
[391793252,1760827834319,-169.0,0.00029765,120]
[391793253,1760827834328,-4518.46159235,0.0002991,2]
[391793254,1760827834338,-216.60641286,0.00029914,2]
[391793255,1760827834348,-462.12649503,0.00029947,2]
[391793256,1760827834357,-886.87,0.0003,2]
[391793257,1760827834367,-660.0,0.000303,2]
[391793258,1760827834377,-158.14058,0.00030442,20]
[391793259,1760827834387,-156.27263,0.00030442,20]
[391793260,1760827834396,-1000.0,0.00030447,2]
[391793261,1760827834406,-491.62393088,0.00030547,2]
[391793262,1760827834415,-3147.91,0.00030684,6]
[391793263,1760827834425,-760.0,0.00030848,2]
[391793264,1760827834435,-748.644212,0.00030871,2]
[391793265,1760827834445,-287.24118118,0.00030915,2]
[391793266,1760827834455,-3874.2842258,0.00031002,2]
[391793267,1760827834464,-521.12136673,0.00031147,2]
[391793268,1760827834474,-169.0,0.00031253,120]
[391793269,1760827834484,-823.0,0.00031361,2]
[391793270,1760827834493,-860.0,0.00031396,2]
[391793271,1760827834503,-3147.91,0.00031643,8]
[391793272,1760827834513,-550.61880258,0.00031747,2]
[391793273,1760827834522,-864.4696597,0.0003178,2]
[391793274,1760827834532,-960.0,0.00031944,2]
[391793275,1760827834542,-4460.94932544,0.00032,30]
[391793276,1760827834552,-200.0,0.00032,120]
[391793277,1760827834676,-580.11623844,0.00032347,2]
[391793278,1760827834690,-4518.46159235,0.00032372,2]
[391793279,1760827834700,-573.26049519,0.000324,5]
[391793280,1760827834709,-371.880183,0.00032476,120]
[391793281,1760827834721,-1060.0,0.00032492,2]
[391793282,1760827834730,-216.60641286,0.000326,2]
[391793283,1760827834739,-1798.3401912,0.00032602,10]
[391793284,1760827834786,-1349.5698088,0.00032602,10]
[391793285,1760827834796,-270.375,0.00032708,2]
[391793286,1760827834805,-631.0,0.00032708,2]
[391793287,1760827834815,-750.0,0.00032748,2]
[391793288,1760827834824,-226.17714604,0.00032748,2]
[391793289,1760827834834,-553.64373807,0.00032748,2]
[391793290,1760827834843,-886.87,0.000328,2]
[391793291,1760827834853,-169.0,0.00032816,120]
[391793292,1760827834861,-609.61367429,0.00032947,2]
[391793293,1760827834871,-1160.0,0.0003304,2]
[391793294,1760827834881,-422.868399,0.00033165,2]
[391793295,1760827834890,-2398.58712556,0.00033286,2]
[391793296,1760827834899,-574.12855637,0.00033296,2]
[391793297,1760827834909,-639.11111014,0.00033547,2]
[391793298,1760827834919,-3147.91,0.00033561,120]
[391793299,1760827834928,-1260.0,0.00033588,2]
[391793300,1760827834938,-595.37131296,0.00033844,2]
[391793301,1760827834948,-150.0,0.00033876,2]
[391793302,1760827834957,-155.0,0.00033927,2]
[391793303,1760827834968,-150.0,0.00033927,2]
[391793304,1760827834977,-361.42,0.00033936,60]
[391793305,1760827834989,-150.0,0.00033943,5]
[391793306,1760827834999,-1152.0,0.00033987,2]
[391793307,1760827835008,-200.0,0.00034,120]
[391793308,1760827835017,-6494.99310801,0.00034,14]
[391793309,1760827835033,-151.0,0.00024697,2]
[391793310,1760827835043,-207.51804459,0.00034,14]
[391793311,1760827835054,-877.51855693,0.00034,14]
[391793337,1760827838486,-151.0,0.00024752,2]
[391793338,1760827838496,-151.0,0.00024806,2]
[391793339,1760827838505,-151.0,0.00024861,2]
[391793340,1760827838514,-245.0,0.00024916,2]
[391793341,1760827838524,-4005.00029047,0.00034,14]
[391793342,1760827838534,-580.0,0.00034136,2]
[391793343,1760827838544,-668.60854599,0.00034147,2]
[391793345,1760827838554,-617.40005154,0.00034392,2]
[391793347,1760827838568,-169.0,0.00034457,120]
[391793349,1760827838578,-355.36661079,0.00034491,5]
[391793351,1760827838588,-3147.91,0.0003452,120]
[391793353,1760827838600,-698.10598185,0.00034747,2]
[391793355,1760827838610,-4518.46159235,0.00034835,2]
[391793357,1760827838619,-640.24385345,0.0003494,2]
[391793359,1760827838629,-1188.40815139,0.00034967,7]
[391793361,1760827838638,-756.6179126,0.00035205,30]
[391793363,1760827838649,-160.0,0.00035252,3]
[391793365,1760827838659,-195.5199091,0.00035269,7]
[391793366,1760827838668,-216.60641286,0.00035286,2]
[391793367,1760827838681,-727.6034177,0.00035347,2]
[391793368,1760827838691,-3147.91,0.00035479,120]
[391793369,1760827838701,-663.93287602,0.00035488,2]
[391793370,1760827838710,-150.0,0.0003549,2]
[391793371,1760827838719,-296.44,0.000357,14]
[391793372,1760827838729,-886.87,0.000357,2]
[391793373,1760827838738,-185.248,0.00035708,2]
[391793374,1760827838748,-196.0,0.0003594,42]
[391793375,1760827838758,-757.10085355,0.00035947,2]
[391793376,1760827838767,-688.49839244,0.00036036,2]
[391793377,1760827838777,-2398.58712556,0.0003619,3]
[391793378,1760827838786,-11585.03,0.000362,14]
[391793379,1760827838796,-501.54275743,0.00036211,13]
[391793380,1760827838805,-3147.91,0.00036438,120]
[391793381,1760827838815,-294.97435853,0.00036547,2]
[391793382,1760827838825,-713.97283296,0.00036584,2]
[391793383,1760827838834,-1900.0,0.00036593,7]
[391793384,1760827838844,-1000.0,0.00036742,4]
[391793385,1760827838853,-1613.0,0.00036833,2]
[391793386,1760827838863,-287.24118118,0.00037,120]
[391793387,1760827838873,-150.0,0.00037103,2]
[391793388,1760827838882,-869159.75717989,0.00037125,3]
[391793389,1760827838891,-740.38982778,0.00037132,2]
[391793390,1760827838899,-4518.46159235,0.00037297,2]
[391793391,1760827838908,-3147.91,0.00037397,120]
[391793392,1760827838916,-2398.58712556,0.000374,3]
[391793393,1760827838924,-1900.0,0.00037415,7]
[391793394,1760827838933,-4248.89843148,0.0003749,10]
[391793395,1760827838943,-10223.50888389,0.000375,60]
[391793396,1760827838952,-168.0,0.00037554,7]
[391793397,1760827838962,-151.0,0.000376,20]
[391793398,1760827838971,-2398.58712556,0.00037642,3]
[391793399,1760827838981,-150.0,0.00037661,2]
[391793400,1760827838991,-168.0,0.00037671,7]
[391793401,1760827839000,-767.7842514,0.0003768,2]
[391793402,1760827839010,-151.0,0.000377,12]
[391793403,1760827839019,-1482.2,0.000377,19]
[391793404,1760827839029,-160.0,0.00037778,4]
[391793405,1760827839039,-902.0,0.00037881,2]
[391793406,1760827839048,-371.880183,0.00037889,120]
[391793407,1760827839058,-26373.64497849,0.000379,2]
[391793408,1760827839067,-216.60641286,0.00037972,2]
[391793409,1760827839077,-4797.17425112,0.0003798,3]
[391793410,1760827839086,-100000.0,0.0003799,2]
[391793411,1760827839096,-500.0,0.00038,5]
[391793412,1760827839105,-200.0,0.00038,120]
[391793413,1760827839114,-168.0,0.00038002,120]
[391793414,1760827839125,-188.0,0.00038004,2]
[391793415,1760827839136,-11585.03,0.000381,14]
[391793416,1760827839146,-2398.58712556,0.00038108,3]
[391793417,1760827839155,-168.0,0.00038115,2]
[391793418,1760827839165,-254.8934092,0.00038137,30]
[391793419,1760827839175,-151.0,0.000382,15]
[391793420,1760827839185,-796.19226871,0.00038228,2]
[391793421,1760827839195,-1900.0,0.00038237,7]
[391793422,1760827839205,-168.0,0.00038337,2]
[391793423,1760827839214,-3147.91,0.00038356,120]
[391793424,1760827839224,-1000.0,0.00038371,8]
[391793425,1760827839233,-230.0,0.0003839,48]
[391793426,1760827839243,-158.14058,0.0003854,15]
[391793427,1760827839252,-156.27263,0.0003854,15]
[391793428,1760827839262,-158.14058,0.00038594,60]
[391793429,1760827839271,-4575.91,0.000386,14]
[391793430,1760827839281,-26373.64497849,0.00038637,2]
[391793431,1760827839291,-188.0,0.00038655,120]
[391793432,1760827839300,-150.0,0.00038716,2]
[391793433,1760827839310,-825.65138265,0.00038776,2]
[391793434,1760827839319,-168.0,0.00038789,2]
[391793435,1760827839329,-2398.58712556,0.0003879,3]
[391793436,1760827839339,-16317.38355792,0.000388,2]
[391793437,1760827839349,-151.0,0.000388,16]
[391793438,1760827839358,-2398.58712556,0.00038867,3]
[391793439,1760827839368,-500.0,0.00038873,5]
[391793440,1760827839377,-28679.06065197,0.00038877,30]
[391793441,1760827839387,-2398.58712556,0.0003889,3]
[391793442,1760827839397,-50148.0,0.000389,120]
[391793443,1760827839407,-23091.04680233,0.00038987,30]
[391793444,1760827839416,-3843.40734371,0.0003899,3]
[391793450,1760827840641,-535.75,0.0003899,3]
[391793455,1760828207918,439.371994,0.00013699,2]
[391793456,1760828208132,439.371994,0.00020187,2]
[391793457,1760828738256,417.15472785,0.00024142,2]
[391793458,1760828879621,165.58,0.00015135,2]
[391793572,1760829038468,-374.322106,0.00026179,2]
[391793573,1760829038478,-380.0,0.00026263,2]
[391793574,1760829038487,-439.371994,0.00026676,2]
[391793575,1760829038496,-193.0,0.00026846,2]
[391793576,1760829038506,-500.0,0.00026846,2]
[391793577,1760829038515,-319.29554007,0.00026846,2]
[391793578,1760829038524,-497.72052045,0.00026846,2]
[391793579,1760829038534,-500.0,0.00026846,2]
[391793580,1760829038543,-500.0,0.00026846,2]
[391793581,1760829038553,-500.0,0.00026846,2]
[391793582,1760829038562,-500.0,0.00026846,2]
[391793583,1760829038571,-167.45793341,0.00026846,2]
[391793584,1760829038580,-381.76575777,0.00026846,2]
[391793585,1760829038589,-500.0,0.00026846,2]
[391793586,1760829038599,-53.41028924,0.00026846,2]
[391793587,1760829038610,-446.58971076,0.00026846,2]
[391793588,1760829038619,-205.16050071,0.00026846,2]
[391793652,1760829078340,1113.1690052,0.00033938,60]
[391793653,1760829216647,193.729239,0.00025635,120]
[391793654,1760829228655,276.54954087,0.00024142,2]
[391793655,1760829228679,239.65045913,0.00024142,2]
[391793656,1760829344172,1103.57,0.00024,21]
[391793657,1760829353158,1000.0,0.00024,21]
[391793658,1760829363605,1000.0,0.00024,21]
[391793659,1760829365924,1000.0,0.00024,21]
[391793667,1760829658837,417.15472785,0.00024142,2]
[391793679,1760829943673,-8330.2764687,0.00025089,2]
[391793680,1760829943695,-150.0,0.00025205,2]
[391793681,1760829943716,-72.57588072,0.000255,4]
[391793685,1760830035123,-347.06201387,0.000255,4]
[391793686,1760830035143,-2347.9913498,0.00025583,2]
[391793687,1760830035163,-193.729239,0.00025635,2]
[391793688,1760830035182,-150.0,0.00025674,2]
[391793689,1760830035202,-172.5,0.00025805,2]
[391793690,1760830035222,-300.0,0.00026837,2]
[391793691,1760830035242,-29079.91974078,0.00026838,2]
[391793692,1760830035262,-500.0,0.00026838,2]
[391793693,1760830035283,-500.0,0.00026838,2]
[391793694,1760830035303,-500.0,0.00026838,2]
[391793695,1760830035325,-500.0,0.00026838,2]
[391793696,1760830035345,-500.0,0.00026838,2]
[391793697,1760830035366,-500.0,0.00026838,2]
[391793698,1760830035387,-500.0,0.00026838,2]
[391793699,1760830035407,-441.58844046,0.00026838,2]
[391793700,1760830035427,-500.0,0.00026838,2]
[391793701,1760830035448,-500.0,0.00026838,2]
[391793702,1760830035471,-500.0,0.00026838,2]
[391793703,1760830035495,-500.0,0.00026838,2]
[391793704,1760830035517,-500.0,0.00026838,2]
[391793705,1760830035539,-500.0,0.00026838,2]
[391793706,1760830035560,-500.0,0.00026838,2]
[391793707,1760830035581,-500.0,0.00026838,2]
[391793708,1760830035603,-500.0,0.00026838,2]
[391793709,1760830035625,-500.0,0.00026838,2]
[391793710,1760830035647,-500.0,0.00026838,2]
[391793711,1760830035669,-500.0,0.00026838,2]
[391793712,1760830035692,-500.0,0.00026838,2]
[391793713,1760830035713,-500.0,0.00026838,2]
[391793714,1760830035735,-545.32024882,0.00026838,2]
[391793715,1760830035757,-500.0,0.00026838,2]
[391793716,1760830035778,-500.0,0.00026838,2]
[391793717,1760830035798,-500.0,0.00026838,2]
[391793718,1760830035819,-500.0,0.00026838,2]
[391793719,1760830035841,-500.0,0.00026838,2]
[391793720,1760830035862,-500.0,0.00026838,2]
[391793721,1760830035884,-500.0,0.00026838,2]
[391793722,1760830035905,-500.0,0.00026838,2]
[391793723,1760830035930,-500.0,0.00026838,2]
[391793724,1760830035950,-588.17657577,0.00026838,2]
[391793725,1760830035972,-1200.0,0.00026838,2]
[391793726,1760830035992,-166.66,0.0002684,2]
[391793727,1760830036013,-166.66,0.00027114,2]
[391793728,1760830036032,-166.68,0.00027388,2]
[391793729,1760830036052,-412.32159071,0.000274,2]
[391793730,1760830036072,-167.98528681,0.000274,2]
[391793731,1760830036092,-662.82684685,0.000274,2]
[391793732,1760830036110,-160.0,0.000274,2]
[391793733,1760830036131,-2796.29479453,0.000274,2]
[391793734,1760830036150,-217.23489934,0.000274,2]
[391793735,1760830036169,-164.06131555,0.000274,2]
[391793736,1760830036190,-2965.94224491,0.000274,2]
[391793737,1760830036211,-527.74046386,0.000274,2]
[391793738,1760830036231,-695.6798062,0.000274,2]
[391793739,1760830036251,-152.15912811,0.000274,2]
[391793740,1760830036271,-422.0,0.000274,2]
[391793741,1760830036293,-422.0,0.00027455,2]
[391793742,1760830036314,-422.0,0.0002751,2]
[391793743,1760830036336,-160.0,0.00027518,2]
[391793744,1760830036358,-422.0,0.00027564,2]
[391793745,1760830036378,-422.0,0.00027619,2]
[391793746,1760830036398,-422.0,0.00027674,2]
[391793747,1760830036418,-412.32159071,0.000277,2]
[391793748,1760830036438,-167.98528681,0.000277,2]
[391793749,1760830036458,-160.0,0.000277,2]
[391793750,1760830036479,-662.82684685,0.000277,2]
[391793751,1760830036501,-2796.29479453,0.000277,2]
[391793752,1760830036520,-164.06131555,0.000277,2]
[391793753,1760830036539,-2965.94224491,0.000277,2]
[391793754,1760830036558,-527.74046386,0.000277,2]
[391793755,1760830036578,-695.6798062,0.000277,2]
[391793756,1760830036599,-422.0,0.00027729,2]
[391793757,1760830036618,-422.0,0.00027784,2]
[391793758,1760830036638,-422.0,0.00027838,2]
[391793759,1760830036658,-422.0,0.00027893,2]
[391793760,1760830036676,-1000.0,0.000279,2]
[391793761,1760830036695,-1000.0,0.000279,2]
[391793762,1760830036714,-422.0,0.00027948,2]
[391793763,1760830036734,-412.32159071,0.00028,2]
[391793764,1760830036754,-662.82684685,0.00028,2]
[391793765,1760830036775,-2796.29479453,0.00028,2]
[391793766,1760830036794,-164.06131555,0.00028,2]
[391793767,1760830036814,-2965.94224491,0.00028,2]
[391793768,1760830036833,-527.74046386,0.00028,2]
[391793769,1760830036854,-695.6798062,0.00028,2]
[391793770,1760830036874,-422.0,0.00028003,2]
[391793771,1760830036893,-422.0,0.00028058,2]
[391793772,1760830037012,-386.37,0.00028103,2]
[391793773,1760830037034,-422.0,0.00028112,2]
[391793774,1760830037058,-150.0,0.00028157,2]
[391793775,1760830037079,-422.0,0.00028167,2]
[391793776,1760830037099,-422.0,0.00028222,2]
[391793777,1760830037119,-422.0,0.00028277,2]
[391793778,1760830037139,-412.32159071,0.000283,2]
[391793779,1760830037160,-662.82684685,0.000283,2]
[391793780,1760830037182,-2796.29479453,0.000283,2]
[391793781,1760830037204,-164.06131555,0.000283,2]
[391793782,1760830037225,-2965.94224491,0.000283,2]
[391793783,1760830037246,-527.74046386,0.000283,2]
[391793784,1760830037267,-695.6798062,0.000283,2]
[391793785,1760830037287,-422.0,0.00028332,2]
[391793786,1760830037306,-422.0,0.00028386,2]
[391793787,1760830037326,-422.0,0.00028441,2]
[391793788,1760830037346,-422.0,0.00028496,2]
[391793789,1760830037366,-422.0,0.00028551,2]
[391793790,1760830037387,-9137.26713336,0.0002859,2]
[391793791,1760830037408,-4599.45722191,0.0002859,2]
[391793792,1760830037428,-412.32159071,0.000286,2]
[391793793,1760830037446,-662.82684685,0.000286,2]
[391793794,1760830037466,-2796.29479453,0.000286,2]
[391793795,1760830037484,-164.06131555,0.000286,2]
[391793796,1760830037503,-2965.94224491,0.000286,2]